[Event "Turkish Cup 2024"]
[Site "Denizli"]
[Date "2024.07.30"]
[Round "1"]
[White "Maruflu, Enes Yusuf"]
[Black "Agce, Koray Mert"]
[Result "1-0"]
[ECO "A13"]
[WhiteElo "2228"]
[BlackElo "1579"]
[Annotator "RC"]
[PlyCount "85"]
[EventDate "2024.08.01"]
[EventType "swiss"]
[EventCountry "TUR"]
[SourceTitle "playchess.com"]
[Source "ChessBase"]
[SourceQuality "1"]
[TimeControl "5400+30"]

1. Nf3 {[%emt 0:01:00]} e6 {[%emt 0:01:00]} 2. b3 {[%emt 0:00:30]} d5 {[%emt 0:00:30]} 3. Bb2 {[%emt 0:00:30]} Nf6 {[%emt 0:00:30]} 4. e3 {[%emt 0:00:30]} c5 {[%emt 0:00:30]} 5. Be2 {[%emt 0:00:30]} Nc6 {[%emt 0:01:30]} 6. O-O {[%emt 0:00:30]} Be7 {[%emt 0:00:30]} 7. c4 {[%emt 0:00:30]} O-O {[%emt 0:01:30]} 8. d4 {[%emt 0:00:30]} cxd4 {[%emt 0:01:30]} 9. Nxd4 {[%emt 0:00:00]} Re8 {[%emt 0:02:30]} 10. cxd5 {[%emt 0:01:00]} exd5 {[%emt 0:01:30]} 11. Nc3 {[%emt 0:00:30]} a6 {[%emt 0:00:30]} 12. Nxc6 {[%emt 0:00:30]} bxc6 {[%emt 0:01:30]} 13. Rc1 {[%emt 0:00:00]} Bb7 {[%emt 0:03:30]} 14. Na4 {[%emt 0:00:00]} Ne4 {[%emt 0:11:30]} 15. Bd3 {[%emt 0:00:30]} Bd6 {[%emt 0:04:30]} 16. Qg4 {[%emt 0:01:30]} Qg5 {[%emt 0:03:30]} 17. Qxg5 {[%emt 0:00:30]} Nxg5 {[%emt 0:00:30]} 18. Rfd1 {[%emt 0:00:30]} Ne6 {[%emt 0:05:30]} 19. g3 {[%emt 0:00:30]} f6 {[%emt 0:02:30]} 20. h4 {[%emt 0:00:30]} Be5 {[%emt 0:01:30]} 21. Bf5 {[%emt 0:01:30]} Bxb2 {[%emt 0:01:30]} 22. Nxb2 {[%emt 0:00:00]} g6 {[%emt 0:00:30]} 23. Bh3 {[%emt 0:01:00]} f5 {[%emt 0:04:30]} 24. Nd3 {[%emt 0:01:30]} a5 {[%emt 0:04:30]} 25. a3 {[%emt 0:01:30]} Nf8 {[%emt 0:02:30]} 26. Nc5 {[%emt 0:00:30]} Bc8 {[%emt 0:00:30]} 27. Bg2 {[%emt 0:00:30]} Nd7 {[%emt 0:00:30]} 28. Rxd5 {[%emt 0:01:30]} Nf6 {[%emt 0:13:30]} 29. Rd4 {[%emt 0:00:30]} Ne4 {[%emt 0:02:30]} 30. Nxe4 {[%emt 0:00:30]} fxe4 {[%emt 0:00:30]} 31. Rxe4 {[%emt 0:00:30]} Rd8 {[%emt 0:01:30]} 32. Rd4 {[%emt 0:00:00]} Rxd4 {[%emt 0:01:30]} 33. exd4 {[%emt 0:00:00]} Be6 {[%emt 0:00:30]} 34. Bxc6 {[%emt 0:00:30]} Rc8 {[%emt 0:00:30]} 35. d5 {[%emt 0:00:00]} Bf7 {[%emt 0:01:30]} 36. b4 {[%emt 0:00:00]} axb4 {[%emt 0:00:30]} 37. axb4 {[%emt 0:00:30]} Kf8 {[%emt 0:00:30]} 38. Re1 {[%emt 0:00:30]} h6 {[%emt 0:00:30]} 39. b5 {[%emt 0:00:30]} g5 {[%emt 0:00:30]} 40. hxg5 {[%emt 0:00:30]} hxg5 {[%emt 0:00:30]} 41. b6 {[%emt 0:00:30]} Bh5 {[%emt 0:00:30]} 42. b7 {[%emt 0:00:30]} Rb8 {[%emt 0:00:30]} 43. d6 {[%emt 0:00:30]} 1-0

[Event "Turkish Cup 2024"]
[Site "Denizli"]
[Date "2024.07.30"]
[Round "1"]
[White "Ozdemir, Serhan Berat"]
[Black "Atay, Kayra"]
[Result "1-0"]
[ECO "C04"]
[WhiteElo "2194"]
[BlackElo "1537"]
[Annotator "RC"]
[PlyCount "69"]
[EventDate "2024.08.01"]
[EventType "swiss"]
[EventCountry "TUR"]
[SourceTitle "playchess.com"]
[Source "ChessBase"]
[SourceQuality "1"]
[TimeControl "5400+30"]

1. e4 {[%emt 0:01:00]} e6 {[%emt 0:01:00]} 2. d4 {[%emt 0:00:00]} d5 {[%emt 0:00:30]} 3. Nd2 {[%emt 0:00:00]} Nc6 {[%emt 0:00:00]} 4. Ngf3 {[%emt 0:00:30]} Nf6 {[%emt 0:01:00]} 5. e5 {[%emt 0:00:00]} Nd7 {[%emt 0:01:30]} 6. Bb5 {[%emt 0:00:00]} a6 {[%emt 0:00:30]} 7. Bxc6 {[%emt 0:00:30]} bxc6 {[%emt 0:00:00]} 8. c4 {[%emt 0:00:30]} c5 {[%emt 0:01:00]} 9. cxd5 {[%emt 0:01:30]} exd5 {[%emt 0:00:30]} 10. Qa4 {[%emt 0:11:30]} Be7 {[%emt 0:17:30]} 11. dxc5 {[%emt 0:01:30]} O-O {[%emt 0:02:30]} 12. b4 {[%emt 0:04:30]} a5 {[%emt 0:10:30]} 13. Nb3 {[%emt 0:01:30]} Nxe5 {[%emt 0:16:30]} 14. Nxe5 {[%emt 0:01:30]} Bf6 {[%emt 0:00:30]} 15. Bb2 {[%emt 0:04:30]} Bxe5 {[%emt 0:00:30]} 16. Bxe5 {[%emt 0:00:30]} Re8 {[%emt 0:00:30]} 17. O-O {[%emt 0:00:30]} Rxe5 {[%emt 0:00:00]} 18. Rae1 {[%emt 0:03:30]} Rxe1 {[%emt 0:02:00]} 19. Rxe1 {[%emt 0:00:30]} Be6 {[%emt 0:03:30]} 20. b5 {[%emt 0:07:30]} Qf6 {[%emt 0:03:30]} 21. Qd4 {[%emt 0:02:30]} a4 {[%emt 0:05:30]} 22. Qxf6 {[%emt 0:05:30]} gxf6 {[%emt 0:00:30]} 23. Nd4 {[%emt 0:00:30]} Rb8 {[%emt 0:00:30]} 24. a3 {[%emt 0:00:30]} Kf8 {[%emt 0:00:30]} 25. f4 {[%emt 0:00:00]} Bd7 {[%emt 0:01:30]} 26. c6 {[%emt 0:01:00]} Be6 {[%emt 0:02:30]} 27. f5 {[%emt 0:00:00]} Bxf5 {[%emt 0:00:30]} 28. Nxf5 {[%emt 0:00:00]} Rxb5 {[%emt 0:00:30]} 29. g4 {[%emt 0:00:30]} h5 {[%emt 0:01:30]} 30. Nd4 {[%emt 0:03:30]} Rc5 {[%emt 0:00:30]} 31. gxh5 {[%emt 0:00:00]} Rc4 {[%emt 0:00:30]} 32. Nf5 {[%emt 0:02:00]} Rxc6 {[%emt 0:01:30]} 33. h6 {[%emt 0:00:30]} Rc3 {[%emt 0:00:00]} 34. h7 {[%emt 0:00:30]} Rh3 {[%emt 0:00:00]} 35. Rb1 {[%emt 0:00:00]} 1-0

[Event "Turkish Cup 2024"]
[Site "Denizli"]
[Date "2024.07.30"]
[Round "1"]
[White "Uysal, Ugur"]
[Black "Caliskan, Behcet"]
[Result "1-0"]
[ECO "A50"]
[WhiteElo "2114"]
[BlackElo "1575"]
[Annotator "RC"]
[PlyCount "69"]
[EventDate "2024.08.01"]
[EventType "swiss"]
[EventCountry "TUR"]
[SourceTitle "playchess.com"]
[Source "ChessBase"]
[SourceQuality "1"]
[TimeControl "5400+30"]

1. Nf3 {[%emt 0:01:00]} Nf6 {[%emt 0:02:00]} 2. d4 {[%emt 0:00:30]} g6 {[%emt 0:00:30]} 3. c4 {[%emt 0:00:00]} Bg7 {[%emt 0:01:30]} 4. g3 {[%emt 0:00:00]} b6 {[%emt 0:01:30]} 5. Bg2 {[%emt 0:00:00]} Bb7 {[%emt 0:00:30]} 6. O-O {[%emt 0:00:00]} O-O {[%emt 0:00:30]} 7. Re1 {[%emt 0:00:00]} d6 {[%emt 0:03:30]} 8. Qc2 {[%emt 0:00:00]} Nbd7 {[%emt 0:02:30]} 9. e4 {[%emt 0:00:30]} e5 {[%emt 0:00:30]} 10. dxe5 {[%emt 0:00:30]} dxe5 {[%emt 0:02:30]} 11. Nc3 {[%emt 0:00:00]} Re8 {[%emt 0:02:30]} 12. b3 {[%emt 0:02:00]} c6 {[%emt 0:06:30]} 13. Ba3 {[%emt 0:01:30]} Qc7 {[%emt 0:01:30]} 14. Rad1 {[%emt 0:00:30]} Bf8 {[%emt 0:00:30]} 15. Bb2 {[%emt 0:00:00]} Rad8 {[%emt 0:03:30]} 16. a3 {[%emt 0:03:00]} a5 {[%emt 0:12:30]} 17. Bh3 {[%emt 0:01:30]} Nb8 {[%emt 0:08:30]} 18. Na4 {[%emt 0:00:30]} Rxd1 {[%emt 0:08:30]} 19. Rxd1 {[%emt 0:00:30]} Nfd7 {[%emt 0:00:30]} 20. Qd2 {[%emt 0:03:30]} Bc8 {[%emt 0:04:30]} 21. b4 {[%emt 0:06:30]} axb4 {[%emt 0:00:30]} 22. axb4 {[%emt 0:00:00]} f6 {[%emt 0:06:30]} 23. Bc3 {[%emt 0:12:00]} Kg7 {[%emt 0:06:30]} 24. Nb2 {[%emt 0:06:30]} Be7 {[%emt 0:01:30]} 25. Qe3 {[%emt 0:02:30]} Rd8 {[%emt 0:01:30]} 26. Nd3 {[%emt 0:02:30]} Nf8 {[%emt 0:01:30]} 27. Bxc8 {[%emt 0:00:00]} Rxc8 {[%emt 0:00:30]} 28. Ndxe5 {[%emt 0:02:00]} Rd8 {[%emt 0:05:29]} 29. Ra1 {[%emt 0:00:30]} Bxb4 {[%emt 0:01:18]} 30. Bxb4 {[%emt 0:00:30]} fxe5 {[%emt 0:00:30]} 31. Nxe5 {[%emt 0:00:30]} c5 {[%emt 0:03:25]} 32. Bc3 {[%emt 0:00:30]} Kg8 {[%emt 0:00:14]} 33. Ng4 {[%emt 0:00:00]} Ne6 {[%emt 0:01:59]} 34. Nf6+ {[%emt 0:04:00]} Kf8 {[%emt 0:00:12]} 35. Qh6+ {[%emt 0:00:30]} 1-0

[Event "Turkish Cup 2024"]
[Site "Denizli"]
[Date "2024.07.30"]
[Round "1"]
[White "Cevizci, Yusuf Baran"]
[Black "Altun, Halil"]
[Result "1-0"]
[ECO "B22"]
[WhiteElo "2102"]
[BlackElo "1562"]
[Annotator "ChessBase"]
[PlyCount "53"]
[EventDate "2024.08.01"]
[EventType "swiss"]
[EventCountry "TUR"]
[SourceTitle "playchess.com"]
[Source "ChessBase"]
[SourceQuality "1"]
[TimeControl "5400+30"]

1. e4 {[%emt 0:01:00]} c5 {[%emt 0:01:00]} 2. c3 {[%emt 0:00:30]} d5 {[%emt 0:00:00]} 3. exd5 {[%emt 0:00:00]} Qxd5 {[%emt 0:00:00]} 4. d4 {[%emt 0:00:00]} cxd4 {[%emt 0:00:30]} 5. cxd4 {[%emt 0:00:30]} Nc6 {[%emt 0:00:30]} 6. Nf3 {[%emt 0:00:30]} Bg4 {[%emt 0:00:30]} 7. Nc3 {[%emt 0:00:30]} Bxf3 {[%emt 0:00:30]} 8. Nxd5 {[%emt 0:00:00]} Bxd1 {[%emt 0:00:00]} 9. Nc7+ {[%emt 0:00:00]} Kd8 {[%emt 0:03:00]} 10. Nxa8 {[%emt 0:00:00]} Bh5 {[%emt 0:00:30]} 11. d5 {[%emt 0:00:00]} Nb4 {[%emt 0:02:30]} 12. Be3 {[%emt 0:00:00]} Nc2+ {[%emt 0:00:30]} 13. Kd2 {[%emt 0:00:00]} Nxe3 {[%emt 0:00:00]} 14. fxe3 {[%emt 0:00:00]} Nf6 {[%emt 0:06:00]} 15. Be2 {[%emt 0:03:00]} Ne4+ {[%emt 0:10:30]} 16. Ke1 {[%emt 0:00:30]} Bxe2 {[%emt 0:07:30]} 17. Kxe2 {[%emt 0:00:00]} Kc8 {[%emt 0:03:30]} 18. Rac1+ {[%emt 0:00:00]} Kb8 {[%emt 0:00:00]} 19. Nc7 {[%emt 0:01:30]} a6 {[%emt 0:05:00]} 20. Rhf1 {[%emt 0:00:30]} Nd6 {[%emt 0:06:30]} 21. e4 {[%emt 0:00:30]} g6 {[%emt 0:00:30]} 22. e5 {[%emt 0:00:00]} Nf5 {[%emt 0:02:30]} 23. g4 {[%emt 0:00:00]} Nh6 {[%emt 0:00:30]} 24. e6 {[%emt 0:00:30]} f5 {[%emt 0:00:30]} 25. h3 {[%emt 0:05:30]} fxg4 {[%emt 0:06:30]} 26. d6 {[%emt 0:00:00]} exd6 {[%emt 0:00:30]} 27. Rxf8+ {[%emt 0:00:00]} 1-0

[Event "Turkish Cup 2024"]
[Site "Denizli"]
[Date "2024.07.30"]
[Round "1"]
[White "Kavri, Yusuf Eren"]
[Black "Karakas, Mehmet Akif"]
[Result "1-0"]
[ECO "A00"]
[WhiteElo "2090"]
[BlackElo "1549"]
[Annotator "ChessBase"]
[PlyCount "51"]
[EventDate "2024.08.01"]
[EventType "swiss"]
[EventCountry "TUR"]
[SourceTitle "playchess.com"]
[Source "ChessBase"]
[SourceQuality "1"]
[TimeControl "5400+30"]

1. b4 {[%emt 0:01:00]} e5 {[%emt 0:02:00]} 2. Bb2 {[%emt 0:00:30]} d6 {[%emt 0:00:30]} 3. c4 {[%emt 0:00:00]} Nf6 {[%emt 0:00:30]} 4. e3 {[%emt 0:00:00]} Be7 {[%emt 0:01:30]} 5. d3 {[%emt 0:02:30]} O-O {[%emt 0:04:30]} 6. Nf3 {[%emt 0:00:30]} Bg4 {[%emt 0:03:30]} 7. Be2 {[%emt 0:00:30]} Nbd7 {[%emt 0:02:30]} 8. O-O {[%emt 0:00:00]} c6 {[%emt 0:01:30]} 9. Nbd2 {[%emt 0:00:00]} a6 {[%emt 0:02:30]} 10. a4 {[%emt 0:04:30]} a5 {[%emt 0:15:30]} 11. b5 {[%emt 0:08:30]} Qc7 {[%emt 0:08:30]} 12. Nb3 {[%emt 0:05:30]} c5 {[%emt 0:11:30]} 13. h3 {[%emt 0:01:30]} Be6 {[%emt 0:10:30]} 14. Rc1 {[%emt 0:01:30]} b6 {[%emt 0:00:30]} 15. d4 {[%emt 0:07:30]} e4 {[%emt 0:13:18]} 16. Nfd2 {[%emt 0:01:30]} Bf5 {[%emt 0:01:41]} 17. Nb1 {[%emt 0:07:30]} Bg6 {[%emt 0:05:07]} 18. Nc3 {[%emt 0:00:30]} Rfe8 {[%emt 0:00:53]} 19. f4 {[%emt 0:03:30]} exf3 {[%emt 0:02:24]} 20. Bxf3 {[%emt 0:01:30]} Rad8 {[%emt 0:00:07]} 21. Bc6 {[%emt 0:07:30]} Bf8 {[%emt 0:00:56]} 22. Qf3 {[%emt 0:03:30]} Re7 {[%emt 0:02:55]} 23. Rfe1 {[%emt 0:07:30]} Nb8 {[%emt 0:04:19]} 24. Nd2 {[%emt 0:01:30]} Nxc6 {[%emt 0:01:29]} 25. bxc6 {[%emt 0:00:30]} Ne8 {[%emt 0:03:12]} 26. Nd5 {[%emt 0:00:30]} 1-0

[Event "Turkish Cup 2024"]
[Site "Denizli"]
[Date "2024.07.30"]
[Round "1"]
[White "Atis, Hasan"]
[Black "Unal, Yalcin"]
[Result "1-0"]
[ECO "B46"]
[WhiteElo "2080"]
[BlackElo "1561"]
[Annotator "RC"]
[PlyCount "53"]
[EventDate "2024.08.01"]
[EventType "swiss"]
[EventCountry "TUR"]
[SourceTitle "playchess.com"]
[Source "ChessBase"]
[SourceQuality "1"]
[TimeControl "5400+30"]

1. e4 {[%emt 0:01:00]} c5 {[%emt 0:01:00]} 2. Nf3 {[%emt 0:00:30]} e6 {[%emt 0:00:30]} 3. Nc3 {[%emt 0:00:00]} Nc6 {[%emt 0:03:30]} 4. d4 {[%emt 0:00:00]} cxd4 {[%emt 0:00:30]} 5. Nxd4 {[%emt 0:00:00]} a6 {[%emt 0:00:30]} 6. Nxc6 {[%emt 0:01:00]} bxc6 {[%emt 0:01:30]} 7. Bd3 {[%emt 0:00:00]} d5 {[%emt 0:15:30]} 8. O-O {[%emt 0:00:00]} h5 {[%emt 0:20:30]} 9. Re1 {[%emt 0:00:30]} Bb4 {[%emt 0:02:30]} 10. Bd2 {[%emt 0:00:30]} d4 {[%emt 0:11:30]} 11. Na4 {[%emt 0:01:30]} Qa5 {[%emt 0:04:30]} 12. c3 {[%emt 0:00:00]} dxc3 {[%emt 0:01:30]} 13. Nxc3 {[%emt 0:00:00]} Qd8 {[%emt 0:08:30]} 14. Qf3 {[%emt 0:02:30]} Qf6 {[%emt 0:01:30]} 15. Qe3 {[%emt 0:00:30]} Qe7 {[%emt 0:08:09]} 16. e5 {[%emt 0:01:30]} Nh6 {[%emt 0:07:17]} 17. a3 {[%emt 0:00:30]} Bc5 {[%emt 0:05:10]} 18. Qg3 {[%emt 0:00:30]} Ng4 {[%emt 0:00:43]} 19. Ne4 {[%emt 0:00:30]} Bd4 {[%emt 0:01:44]} 20. Bc3 {[%emt 0:01:30]} Bxc3 {[%emt 0:02:06]} 21. bxc3 {[%emt 0:00:30]} Kf8 {[%emt 0:00:00]} 22. Nd6 {[%emt 0:02:30]} a5 {[%emt 0:01:43]} 23. Rab1 {[%emt 0:00:30]} Qc7 {[%emt 0:00:57]} 24. Be4 {[%emt 0:05:30]} Bd7 {[%emt 0:00:35]} 25. Qf4 {[%emt 0:03:30]} Nh6 {[%emt 0:00:13]} 26. Bg6 {[%emt 0:02:30]} Be8 {[%emt 0:00:37]} 27. Rb7 {[%emt 0:00:00]} 1-0

[Event "Turkish Cup 2024"]
[Site "Denizli"]
[Date "2024.07.30"]
[Round "1"]
[White "Turgut, Hakan"]
[Black "Uslu, Tarik"]
[Result "1-0"]
[ECO "D37"]
[WhiteElo "2052"]
[BlackElo "1564"]
[Annotator "RC"]
[PlyCount "43"]
[EventDate "2024.08.01"]
[EventType "swiss"]
[EventCountry "TUR"]
[SourceTitle "playchess.com"]
[Source "ChessBase"]
[SourceQuality "1"]
[TimeControl "5400+30"]

1. d4 {[%emt 0:01:00]} d5 {[%emt 0:01:00]} 2. c4 {[%emt 0:00:30]} e6 {[%emt 0:00:30]} 3. Nc3 {[%emt 0:00:30]} Nf6 {[%emt 0:00:00]} 4. Nf3 {[%emt 0:00:30]} Be7 {[%emt 0:00:00]} 5. Bf4 {[%emt 0:00:30]} a6 {[%emt 0:01:30]} 6. cxd5 {[%emt 0:02:30]} Nxd5 {[%emt 0:01:30]} 7. Bd2 {[%emt 0:00:30]} c5 {[%emt 0:04:30]} 8. e4 {[%emt 0:06:30]} cxd4 {[%emt 0:01:30]} 9. Nxd4 {[%emt 0:04:30]} Nf6 {[%emt 0:02:30]} 10. Be3 {[%emt 0:03:30]} b5 {[%emt 0:02:30]} 11. Bd3 {[%emt 0:02:30]} O-O {[%emt 0:01:30]} 12. O-O {[%emt 0:02:30]} Bb7 {[%emt 0:02:30]} 13. e5 {[%emt 0:13:30]} Nd5 {[%emt 0:02:30]} 14. Nxd5 {[%emt 0:10:30]} Qxd5 {[%emt 0:00:30]} 15. Qg4 {[%emt 0:00:30]} Qxe5 {[%emt 0:04:30]} 16. Nf3 {[%emt 0:04:30]} Bxf3 {[%emt 0:11:30]} 17. Qxf3 {[%emt 0:01:30]} Bd6 {[%emt 0:01:30]} 18. g3 {[%emt 0:01:30]} Nd7 {[%emt 0:00:30]} 19. Bf4 {[%emt 0:00:30]} Qd4 {[%emt 0:02:30]} 20. Rad1 {[%emt 0:01:30]} Ne5 {[%emt 0:01:30]} 21. Bxh7+ {[%emt 0:00:00]} Kh8 {[%emt 0:02:30]} 22. Qh5 {[%emt 0:00:00]} 1-0

[Event "Turkish Cup 2024"]
[Site "Denizli"]
[Date "2024.07.30"]
[Round "1"]
[White "Yilmaz, Kerem Tuna"]
[Black "Turk, Burak"]
[Result "1-0"]
[ECO "B38"]
[WhiteElo "2025"]
[BlackElo "1585"]
[Annotator "RC"]
[PlyCount "73"]
[EventDate "2024.08.01"]
[EventType "swiss"]
[EventCountry "TUR"]
[SourceTitle "playchess.com"]
[Source "ChessBase"]
[SourceQuality "1"]
[TimeControl "5400+30"]

1. e4 {[%emt 0:01:00]} c5 {[%emt 0:01:00]} 2. Nf3 {[%emt 0:00:30]} g6 {[%emt 0:00:30]} 3. d4 {[%emt 0:00:30]} cxd4 {[%emt 0:00:30]} 4. Nxd4 {[%emt 0:00:30]} Bg7 {[%emt 0:00:00]} 5. c4 {[%emt 0:00:30]} Nc6 {[%emt 0:00:00]} 6. Be3 {[%emt 0:00:00]} Nf6 {[%emt 0:01:30]} 7. Nc3 {[%emt 0:00:00]} d6 {[%emt 0:00:00]} 8. Be2 {[%emt 0:01:30]} O-O {[%emt 0:01:00]} 9. O-O {[%emt 0:01:30]} Bd7 {[%emt 0:01:30]} 10. f3 {[%emt 0:01:30]} Qb6 {[%emt 0:16:30]} 11. Na4 {[%emt 0:13:30]} Qa5 {[%emt 0:00:30]} 12. Nb5 {[%emt 0:00:30]} Ne5 {[%emt 0:05:30]} 13. b4 {[%emt 0:01:30]} Qd8 {[%emt 0:01:30]} 14. Nxa7 {[%emt 0:04:30]} Bxa4 {[%emt 0:03:30]} 15. Qxa4 {[%emt 0:00:30]} Nc6 {[%emt 0:00:30]} 16. Nxc6 {[%emt 0:15:30]} Rxa4 {[%emt 0:00:30]} 17. Nxd8 {[%emt 0:00:30]} Rxd8 {[%emt 0:00:30]} 18. c5 {[%emt 0:07:30]} Nd7 {[%emt 0:05:30]} 19. Rad1 {[%emt 0:03:30]} Rxa2 {[%emt 0:04:30]} 20. cxd6 {[%emt 0:01:30]} exd6 {[%emt 0:04:30]} 21. Bb5 {[%emt 0:00:30]} Ne5 {[%emt 0:01:30]} 22. Rf2 {[%emt 0:07:30]} Rxf2 {[%emt 0:02:30]} 23. Kxf2 {[%emt 0:03:30]} Nc6 {[%emt 0:00:30]} 24. Bb6 {[%emt 0:11:30]} Ra8 {[%emt 0:00:30]} 25. Rxd6 {[%emt 0:08:48]} Ra2+ {[%emt 0:02:30]} 26. Be2 {[%emt 0:01:57]} Rb2 {[%emt 0:01:30]} 27. b5 {[%emt 0:00:33]} Bf8 {[%emt 0:01:30]} 28. Rd7 {[%emt 0:00:35]} Ne5 {[%emt 0:02:30]} 29. Rxb7 {[%emt 0:04:19]} Nd3+ {[%emt 0:02:30]} 30. Ke3 {[%emt 0:00:38]} Nc1 {[%emt 0:00:30]} 31. Bc4 {[%emt 0:00:20]} Bh6+ {[%emt 0:01:30]} 32. f4 {[%emt 0:00:15]} Rxg2 {[%emt 0:02:30]} 33. Bxf7+ {[%emt 0:00:51]} Kg7 {[%emt 0:01:30]} 34. Bd4+ {[%emt 0:00:15]} Kf8 {[%emt 0:00:00]} 35. Bc5+ {[%emt 0:00:04]} Kg7 {[%emt 0:00:00]} 36. Bd5+ {[%emt 0:00:03]} Kf6 {[%emt 0:00:30]} 37. Rf7# {[%emt 0:00:06]} 1-0

[Event "Turkish Cup 2024"]
[Site "Denizli"]
[Date "2024.07.30"]
[Round "1"]
[White "Yildirim, Ibrahim Halil"]
[Black "Isler, Ulviye Yaren"]
[Result "1-0"]
[ECO "B01"]
[WhiteElo "2024"]
[BlackElo "1566"]
[Annotator "RC"]
[PlyCount "100"]
[EventDate "2024.08.01"]
[EventType "swiss"]
[EventCountry "TUR"]
[SourceTitle "playchess.com"]
[Source "ChessBase"]
[SourceQuality "1"]
[TimeControl "5400+30"]

1. e4 {[%emt 0:01:00]} d5 {[%emt 0:01:00]} 2. exd5 {[%emt 0:00:30]} Qxd5 {[%emt 0:00:00]} 3. Nc3 {[%emt 0:00:00]} Qd6 {[%emt 0:00:00]} 4. d4 {[%emt 0:00:00]} c6 {[%emt 0:00:00]} 5. Nf3 {[%emt 0:01:30]} Nf6 {[%emt 0:01:00]} 6. Ne5 {[%emt 0:12:30]} Bf5 {[%emt 0:13:30]} 7. g4 {[%emt 0:01:30]} Bg6 {[%emt 0:10:30]} 8. Bg2 {[%emt 0:17:30]} Nbd7 {[%emt 0:04:30]} 9. f4 {[%emt 0:10:30]} e6 {[%emt 0:02:30]} 10. Be3 {[%emt 0:08:30]} O-O-O {[%emt 0:05:30]} 11. Qf3 {[%emt 0:05:30]} Nb6 {[%emt 0:07:30]} 12. O-O {[%emt 0:08:30]} Nfd5 {[%emt 0:02:30]} 13. Nxd5 {[%emt 0:11:55]} Nxd5 {[%emt 0:00:30]} 14. c3 {[%emt 0:03:49]} Qc7 {[%emt 0:09:30]} 15. Rae1 {[%emt 0:04:05]} Bd6 {[%emt 0:08:30]} 16. Nc4 {[%emt 0:01:26]} h5 {[%emt 0:03:30]} 17. Nxd6+ {[%emt 0:01:40]} Qxd6 {[%emt 0:01:30]} 18. g5 {[%emt 0:00:06]} f6 {[%emt 0:07:52]} 19. Bd2 {[%emt 0:01:54]} fxg5 {[%emt 0:03:03]} 20. fxg5 {[%emt 0:00:05]} Rdf8 {[%emt 0:01:49]} 21. Qe2 {[%emt 0:00:26]} Bf5 {[%emt 0:00:27]} 22. a3 {[%emt 0:02:49]} g6 {[%emt 0:08:00]} 23. c4 {[%emt 0:01:18]} Ne7 {[%emt 0:01:16]} 24. Bc3 {[%emt 0:00:29]} Rh7 {[%emt 0:00:21]} 25. b4 {[%emt 0:01:32]} Rhf7 {[%emt 0:02:14]} 26. Qe3 {[%emt 0:01:32]} a6 {[%emt 0:02:28]} 27. a4 {[%emt 0:01:02]} Kd7 {[%emt 0:01:38]} 28. Rf2 {[%emt 0:01:43]} Bg4 {[%emt 0:00:40]} 29. Rxf7 {[%emt 0:00:58]} Rxf7 {[%emt 0:00:01]} 30. b5 {[%emt 0:00:35]} axb5 {[%emt 0:01:33]} 31. axb5 {[%emt 0:00:05]} cxb5 {[%emt 0:00:23]} 32. Rb1 {[%emt 0:00:30]} Nc6 {[%emt 0:01:28]} 33. Rxb5 {[%emt 0:00:48]} Kc8 {[%emt 0:00:24]} 34. d5 {[%emt 0:00:38]} Nd8 {[%emt 0:00:55]} 35. dxe6 {[%emt 0:00:32]} Qd1+ {[%emt 0:00:22]} 36. Be1 {[%emt 0:00:18]} Bxe6 {[%emt 0:00:27]} 37. Rc5+ {[%emt 0:00:38]} Rc7 {[%emt 0:00:23]} 38. Rxc7+ {[%emt 0:00:44]} Kxc7 {[%emt 0:00:01]} 39. Qe5+ {[%emt 0:00:12]} Qd6 {[%emt 0:00:41]} 40. Ba5+ {[%emt 0:00:05]} Kd7 {[%emt 0:00:48]} 41. Qxd6+ {[%emt 0:00:30]} Kxd6 {[%emt 0:00:00]} 42. Bxd8 {[%emt 0:00:13]} Bxc4 {[%emt 0:00:09]} 43. Bxb7 {[%emt 0:00:00]} Ke5 {[%emt 0:00:00]} 44. Kf2 {[%emt 0:00:00]} Be6 {[%emt 0:00:36]} 45. Kg3 {[%emt 0:00:14]} Bg4 {[%emt 0:01:02]} 46. Bf6+ {[%emt 0:00:07]} Kd6 {[%emt 0:00:36]} 47. Be4 {[%emt 0:00:06]} Bf5 {[%emt 0:01:20]} 48. Bxf5 {[%emt 0:00:30]} gxf5 {[%emt 0:00:00]} 49. g6 {[%emt 0:00:13]} Ke6 {[%emt 0:00:00]} 50. g7 {[%emt 0:00:00]} Kd5 {[%emt 0:00:23]} 1-0

[Event "Turkish Cup 2024"]
[Site "Denizli"]
[Date "2024.07.30"]
[Round "1"]
[White "Turkmen, Ataberk"]
[Black "Ozavci, Mustafa"]
[Result "1-0"]
[ECO "B00"]
[WhiteElo "2022"]
[BlackElo "1454"]
[Annotator "RC"]
[PlyCount "73"]
[EventDate "2024.08.01"]
[EventType "swiss"]
[EventCountry "TUR"]
[SourceTitle "playchess.com"]
[Source "ChessBase"]
[SourceQuality "1"]
[TimeControl "5400+30"]

1. e4 {[%emt 0:01:00]} b6 {[%emt 0:05:00]} 2. d4 {[%emt 0:00:30]} d6 {[%emt 0:01:30]} 3. Nc3 {[%emt 0:00:30]} g6 {[%emt 0:01:30]} 4. Bc4 {[%emt 0:00:30]} Bg7 {[%emt 0:00:30]} 5. f4 {[%emt 0:00:30]} e6 {[%emt 0:04:30]} 6. Nf3 {[%emt 0:00:00]} Bb7 {[%emt 0:00:30]} 7. Bb3 {[%emt 0:01:00]} Ne7 {[%emt 0:04:30]} 8. O-O {[%emt 0:00:30]} O-O {[%emt 0:00:30]} 9. Qe1 {[%emt 0:02:30]} d5 {[%emt 0:07:30]} 10. e5 {[%emt 0:00:30]} Nd7 {[%emt 0:01:30]} 11. Ne2 {[%emt 0:01:30]} c5 {[%emt 0:01:30]} 12. c3 {[%emt 0:00:00]} Rc8 {[%emt 0:01:30]} 13. g4 {[%emt 0:02:00]} c4 {[%emt 0:04:30]} 14. Bc2 {[%emt 0:00:30]} f6 {[%emt 0:00:30]} 15. Qh4 {[%emt 0:02:30]} Rf7 {[%emt 0:05:30]} 16. exf6 {[%emt 0:03:30]} Bxf6 {[%emt 0:00:30]} 17. Qh3 {[%emt 0:00:00]} Nf8 {[%emt 0:02:30]} 18. Bd2 {[%emt 0:02:00]} Rc7 {[%emt 0:05:30]} 19. Ne5 {[%emt 0:00:30]} Bxe5 {[%emt 0:01:30]} 20. fxe5 {[%emt 0:00:00]} Nc6 {[%emt 0:02:30]} 21. Bh6 {[%emt 0:05:00]} Bc8 {[%emt 0:02:30]} 22. Qe3 {[%emt 0:01:30]} Qe8 {[%emt 0:06:30]} 23. Nf4 {[%emt 0:02:30]} Ne7 {[%emt 0:06:30]} 24. Nh3 {[%emt 0:00:30]} Nc6 {[%emt 0:09:30]} 25. Ng5 {[%emt 0:00:30]} Nd8 {[%emt 0:04:30]} 26. Nxf7 {[%emt 0:00:30]} Nxf7 {[%emt 0:00:45]} 27. Bxf8 {[%emt 0:00:30]} Qxf8 {[%emt 0:00:22]} 28. Rf6 {[%emt 0:00:30]} Qg7 {[%emt 0:00:30]} 29. Raf1 {[%emt 0:00:00]} b5 {[%emt 0:04:25]} 30. h4 {[%emt 0:01:00]} Qh6 {[%emt 0:02:19]} 31. Qf2 {[%emt 0:03:30]} Qg7 {[%emt 0:01:42]} 32. g5 {[%emt 0:00:30]} Re7 {[%emt 0:00:14]} 33. h5 {[%emt 0:00:30]} gxh5 {[%emt 0:01:07]} 34. g6 {[%emt 0:00:30]} hxg6 {[%emt 0:03:23]} 35. Rxg6 {[%emt 0:00:00]} Qxg6+ {[%emt 0:01:00]} 36. Bxg6 {[%emt 0:00:00]} Ng5 {[%emt 0:00:29]} 37. Qf8# {[%emt 0:00:30]} 1-0